{"text_format":"1","workbook":"xlsx","n_sheets":3,"sheets":["BE Angebot","HT (BE)","Makro BE Angebot"],"not_rendered":{"charts":0,"images":1,"macros":1,"external_links":1,"defined_names":7,"comments":1,"pivot_tables":0},"unopened":[],"bounds":{"document_bytes":16777216,"sheet_cells":100000,"rows_first":2000,"rows_last":500,"rows_between":2000,"halvings":0,"cell_chars":16384,"cell_head_chars":4096},"cells_cut":0,"cells_raw":0,"read":"whole","date_system":"1900"}

{"sheet":"BE Angebot","index":0,"n_rows":81,"n_cols":16,"rows_kept":81,"cut":false,"hidden":false,"merged":[[8,5,8,9],[10,5,10,9],[11,5,11,9],[12,5,12,9],[81,1,81,9],[78,1,78,9],[70,3,70,5],[70,7,70,9],[75,1,75,9],[80,1,80,9],[13,5,13,9],[19,3,19,9],[20,3,20,9],[21,3,21,9],[22,3,22,9],[38,1,38,8],[57,1,57,8],[41,1,41,8],[42,1,42,8],[43,1,43,8],[53,1,53,8],[56,1,56,8],[49,1,49,8],[50,1,50,8],[51,1,51,8],[52,1,52,8],[44,1,44,8],[45,1,45,8],[46,1,46,8],[47,1,47,8],[63,7,63,9],[64,7,64,9],[65,7,65,9],[48,1,48,8],[69,3,69,5],[69,7,69,9],[65,3,65,5],[63,3,63,5],[66,3,66,5],[68,3,68,5],[64,3,64,5],[67,7,67,9],[68,7,68,9],[67,3,67,5],[66,7,66,9],[61,1,61,9],[31,1,31,8],[27,1,27,8],[28,1,28,8],[36,1,36,8],[37,1,37,8],[32,1,32,8],[33,1,33,8],[34,1,34,8],[35,1,35,8],[29,1,29,8],[30,1,30,8]]}
[null,null,null,null,null,null,null,null,null,null,"Spalte F / Wert","Spalte B bis H / Kosten, Leistung","Spalte C bis E / Beschrieb","Spalte G bis I / Bemerkung","Spalte B bis I / Erfahrungsbericht"]
[]
[]
[]
[]
[]
[null,"Angebotsbericht (KIP 2bis)"]
[null,"Dieses Formular ist für jedes kommunale Angebot im Rahmen des KIP 2bis auszufüllen."]
[null,"Gemeinde:",null,null,null,"[bitte über Drop-Down auswählen]"]
[null,"LV-Nr:",null,null,null,{"$f":"IF(F9=\"\",\"\",VLOOKUP(F9,'HT (BE)'!A4:B63,2,FALSE))","v":0},null,null,null,{"$f":"IF(F9=\"\",\"\",VLOOKUP(F9,'HT (BE)'!$A$4:$C$63,3,FALSE))","v":0}]
[null,"Jahr:",null,null,null,{"$f":"IF(OR(F9=\"\",F9=\"[bitte über Drop-Down auswählen]\"),\"\",'HT (BE)'!B1)","v":""}]
[null,"Anbieter (falls nicht Gemeinde):"]
[null,"Angebot (gemäss Leistungskatalog):"]
[null,"Förderbereich (gemäss Vorgaben Kanton):",null,null,null,"[bitte über Drop-Down auswählen]",null,null,null,null,null,null,null,null,null,{"$f":"IFERROR(IF(VLOOKUP(F14,'HT (BE)'!$E$5:$F$13,2,)=0,\"N\",\"J\"),\"J\")","v":"J"}]
[]
[]
[null,"1. Angaben zum Anbieter (falls nicht Gemeinde)"]
[]
[null,"Kontaktperson"]
[null,"Name"]
[null,"Funktion"]
[null,"Telefon"]
[null,"E-Mail"]
[]
[]
[null,"2. Finanzen"]
[null,"Kosten"]
[null,"Leistung",null,null,null,null,null,null,null,"Kosten"]
[null,null,null,null,null,null,null,null,null,null,null,{"$f":"IF(B29=\"\",\"\",B29)","v":""}]
[null,null,null,null,null,null,null,null,null,null,null,""]
[null,null,null,null,null,null,null,null,null,null,null,""]
[null,null,null,null,null,null,null,null,null,null,null,""]
[null,null,null,null,null,null,null,null,null,null,null,""]
[null,null,null,null,null,null,null,null,null,null,null,""]
[null,null,null,null,null,null,null,null,null,null,null,""]
[null,null,null,null,null,null,null,null,null,null,null,""]
[null,null,null,null,null,null,null,null,null,null,null,""]
[null,null,null,null,null,null,null,null,null,null,null,""]
[null,"Total:",null,null,null,null,null,null,null,{"$f":"SUM(J29:L38)","v":0}]
[]
[null,"Erlöse"]
[null,"Quelle",null,null,null,null,null,null,null,"Betrag"]
[null,"TN-Beiträge",null,null,null,null,null,null,null,null,null,{"$f":"IF(B43=\"\",\"\",B43)","v":"TN-Beiträge"}]
[null,"Weitere Beiträge [bitte spezifizieren, bei Beiträgen aus anderen Gemeinden bitte Beitrag pro Gemeinde auf separaten Zeilen ausweisen].",null,null,null,null,null,null,null,null,null,"Weitere Beiträge [bitte spezifizieren, bei Beiträgen aus anderen Gemeinden bitte Beitrag pro Gemeinde auf separaten Zeilen ausweisen]."]
[null,null,null,null,null,null,null,null,null,null,null,""]
[null,null,null,null,null,null,null,null,null,null,null,""]
[null,null,null,null,null,null,null,null,null,null,null,""]
[null,null,null,null,null,null,null,null,null,null,null,""]
[null,null,null,null,null,null,null,null,null,null,null,""]
[null,null,null,null,null,null,null,null,null,null,null,""]
[null,null,null,null,null,null,null,null,null,null,null,""]
[null,null,null,null,null,null,null,null,null,null,null,""]
[null,null,null,null,null,null,null,null,null,null,null,""]
[null,"Total:",null,null,null,null,null,null,null,{"$f":"SUM(J43:J53)","v":0}]
[]
[null,"Anrechenbare Kosten (KIP)"]
[null,"Berechnungsweise",null,null,null,null,null,null,null,"Ergebnis"]
[null,"Total Kosten minus Total Erlöse",null,null,null,null,null,null,null,{"$f":"J39-J54","v":0}]
[]
[null,"3. Kennzahlen (Fachbereich: Erstinfo, Sprache, Frühe Kindheit)"]
[]
[null,{"$f":"IF(P14=\"J\",\"Kennzahlen müssen nur erfasst werden für ausgewählte Fachbereiche, Kennzahlen werden in Abhängigkeit vom gewählten Förderbereich eingeblendet.\",\"Die Erfassung von Kennzahlen entfällt.\")","v":"Kennzahlen müssen nur erfasst werden für ausgewählte Fachbereiche, Kennzahlen werden in Abhängigkeit vom gewählten Förderbereich eingeblendet."}]
[]
[null,"Förderbereich","LZ","Kennzahl\n(betrifft Förderbereiche Erstinfo, Sprache und Bildung, \nFrühe Kindheit)",null,null,"Wert","Bemerkungen"]
[null,{"$f":"IF($F$14=\"\",\"\",IF($F$14='HT (BE)'!$E$5,'HT (BE)'!$E$5,IF($F$14='HT (BE)'!$E$8,'HT (BE)'!$E$8,IF($F$14='HT (BE)'!$E$9,'HT (BE)'!$E$9,IF($F$14='HT (BE)'!$E$10,'HT (BE)'!$E$10,\"\")))))","v":""},{"$f":"IF(B65=\"\",\"\",VLOOKUP(B65,'HT (BE)'!$H$5:$J$19,3,FALSE))","v":""},{"$f":"IF(B65=\"\",\"[keine Angaben zu Kennzahlen notwendig]\",IF(B65='HT (BE)'!H5,'HT (BE)'!I5,IF(B65='HT (BE)'!H10,'HT (BE)'!I10,IF(B65='HT (BE)'!H18,'HT (BE)'!I18,'HT (BE)'!I19))))","v":"[keine Angaben zu Kennzahlen notwendig]"},null,null,null,null,null,null,null,null,{"$f":"IF(D65=\"\",\"\",D65)","v":"[keine Angaben zu Kennzahlen notwendig]"},{"$f":"IF(H65=\"\",\"\",H65)","v":""}]
[null,{"$f":"IF($F$14=\"\",\"\",IF($F$14='HT (BE)'!$E$5,'HT (BE)'!$E$5,IF($F$14='HT (BE)'!$E$8,'HT (BE)'!$E$8,\"\")))","v":""},{"$f":"IF(B66=\"\",\"\",VLOOKUP(B66,'HT (BE)'!$H$5:$J$19,3,FALSE))","v":""},{"$f":"IF(B66=\"\",\"[keine Angaben zu Kennzahlen notwendig]\",IF(B66='HT (BE)'!H6,'HT (BE)'!I6,IF(B66='HT (BE)'!H11,'HT (BE)'!I11,'HT (BE)'!I19)))","v":"[keine Angaben zu Kennzahlen notwendig]"},null,null,null,null,null,null,{"$f":"IF(G65=\"\",\"\",G66/G65)","v":""},null,"[keine Angaben zu Kennzahlen notwendig]",""]
[null,{"$f":"IF($F$14=\"\",\"\",IF($F$14='HT (BE)'!$E$5,'HT (BE)'!$E$5,IF($F$14='HT (BE)'!$E$8,'HT (BE)'!$E$8,\"\")))","v":""},{"$f":"IF(B67=\"\",\"\",VLOOKUP(B67,'HT (BE)'!$H$5:$J$19,3,FALSE))","v":""},{"$f":"IF(B67=\"\",\"[keine Angaben zu Kennzahlen notwendig]\",IF(B67='HT (BE)'!H7,'HT (BE)'!I7,'HT (BE)'!I12))","v":"[keine Angaben zu Kennzahlen notwendig]"},null,null,null,null,null,null,null,null,"[keine Angaben zu Kennzahlen notwendig]",""]
[null,{"$f":"IF($F$14=\"\",\"\",IF($F$14='HT (BE)'!$E$5,'HT (BE)'!$E$5,IF($F$14='HT (BE)'!$E$8,'HT (BE)'!$E$8,\"\")))","v":""},{"$f":"IF(B68=\"\",\"\",VLOOKUP(B68,'HT (BE)'!$H$5:$J$19,3,FALSE))","v":""},{"$f":"IF(B68=\"\",\"[keine Angaben zu Kennzahlen notwendig]\",IF(B68='HT (BE)'!H8,'HT (BE)'!I8,'HT (BE)'!I13))","v":"[keine Angaben zu Kennzahlen notwendig]"},null,null,null,null,null,null,null,null,"[keine Angaben zu Kennzahlen notwendig]",""]
[null,{"$f":"IF($F$14=\"\",\"\",IF($F$14='HT (BE)'!$E$8,'HT (BE)'!$E$8,\"\"))","v":""},{"$f":"IF(B69=\"\",\"\",VLOOKUP(B69,'HT (BE)'!$H$5:$J$19,3,FALSE))","v":""},{"$f":"IF(B69=\"\",\"[keine Angaben zu Kennzahlen notwendig]\",'HT (BE)'!I14)","v":"[keine Angaben zu Kennzahlen notwendig]"},null,null,null,null,null,null,null,null,"[keine Angaben zu Kennzahlen notwendig]",""]
[null,{"$f":"IF($F$14=\"\",\"\",IF($F$14='HT (BE)'!$E$8,'HT (BE)'!$E$8,\"\"))","v":""},{"$f":"IF(B70=\"\",\"\",VLOOKUP(B70,'HT (BE)'!$H$5:$J$19,3,FALSE))","v":""},{"$f":"IF(B70=\"\",\"[keine Angaben zu Kennzahlen notwendig]\",'HT (BE)'!I15)","v":"[keine Angaben zu Kennzahlen notwendig]"},null,null,null,null,null,null,null,null,"[keine Angaben zu Kennzahlen notwendig]",""]
[null,{"$f":"IF($F$14=\"\",\"\",IF($F$14='HT (BE)'!$E$8,'HT (BE)'!$E$8,\"\"))","v":""},{"$f":"IF(B71=\"\",\"\",VLOOKUP(B71,'HT (BE)'!$H$5:$J$19,3,FALSE))","v":""},{"$f":"IF(B71=\"\",\"[keine Angaben zu Kennzahlen notwendig]\",'HT (BE)'!I16)","v":"[keine Angaben zu Kennzahlen notwendig]"},null,null,null,null,null,null,null,null,"[keine Angaben zu Kennzahlen notwendig]",""]
[]
[null,"4. Erfahrungsbericht"]
[]
[null,"Was hat gut funktioniert?"]
[null,"[Die folgenden Stichworte sind als Orientierungshilfe gedacht und können gelöscht werden: Zielerreichung, Inhalte, Zielgruppe, Struktur, Durchführungsort, Einzugsgebiet, Kooperation mit anderen Akteuren, Rahmenbedingungen, Qualitätssicherungsmassnahmen, Organisatorisches etc.]",null,null,null,null,null,null,null,null,null,null,null,null,{"$f":"IF(B76=\"\",\"\",B76)","v":"[Die folgenden Stichworte sind als Orientierungshilfe gedacht und können gelöscht werden: Zielerreichung, Inhalte, Zielgruppe, Struktur, Durchführungsort, Einzugsgebiet, Kooperation mit anderen Akteuren, Rahmenbedingungen, Qualitätssicherungsmassnahmen, Organisatorisches etc.]"}]
[]
[null,"Was hat noch nicht so gut funktioniert?"]
[null,"[Die folgenden Stichworte sind als Orientierungshilfe gedacht und können gelöscht werden: Zielerreichung, Inhalte, Zielgruppe, Struktur (Dauer, Ablauf, Zeiten), Durchführungsort, Einzugsgebiet, Kooperation mit anderen Akteuren, Rahmenbedingungen, Organisatorisches etc.]",null,null,null,null,null,null,null,null,null,null,null,null,{"$f":"IF(B79=\"\",\"\",B79)","v":"[Die folgenden Stichworte sind als Orientierungshilfe gedacht und können gelöscht werden: Zielerreichung, Inhalte, Zielgruppe, Struktur (Dauer, Ablauf, Zeiten), Durchführungsort, Einzugsgebiet, Kooperation mit anderen Akteuren, Rahmenbedingungen, Organisatorisches etc.]"}]
[null,"Massnahmen zur Optimierung des Angebots?"]
[null,null,null,null,null,null,null,null,null,null,null,null,null,null,{"$f":"IF(B81=\"\",\"\",B81)","v":""}]

{"sheet":"HT (BE)","index":1,"n_rows":63,"n_cols":14,"rows_kept":63,"cut":false,"hidden":true,"merged":[]}
["Jahr",2022,null,null,null,null,null,null,null,null,null,"TN-Liste"]
[]
["Gemeinde","LV-Nr.","Sachb.",null,"Förderbereiche",null,null,"FB (Liste)","Beschrieb","LZ",null,"Geschlecht",null,"Aufenthaltsbewilligung"]
[]
["Adliswil","22-1004-00","MG",null,"1.1 Erstinformation und Integrationsförderbedarf","1.1 Erstinfo",null,"1.1 Erstinformation und Integrationsförderbedarf","Anzahl Begrüssungsgespräche (mit Einladung)",1,null,"m",null,"B (nicht Flüchtling)"]
["Bachenbülach","22-1005-00","KR",null,"1.2 Beratung",null,null,"1.1 Erstinformation und Integrationsförderbedarf","Zielgruppenerreichung in % (Anzahl Begrüssungsgespräche/Anzahl verschickter Einladungen)",1,null,"w",null,"B (Flüchtling)"]
["Bassersdorf","22-1029-00","FW",null,"1.3 Schutz vor Diskriminierung",null,null,"1.1 Erstinformation und Integrationsförderbedarf","Anzahl Beratungsgespräche (ohne Einladung)",1,null,null,null,"C"]
["Birmensdorf","22-1027-00","MG",null,"2.1 Sprache","2.1 Sprache",null,"1.1 Erstinformation und Integrationsförderbedarf","Anzahl Gruppenveranstaltungen",1,null,null,null,"F"]
["Bubikon","22-1030-00","FW",null,"2.2 Frühe Kindheit","2.2 Frühe Kindheit",null,null,null,null,null,null,null,"L"]
["Buchs","22-1006-00","MG",null,"3.1 Interkulturelles Dolmetschen und Vermitteln",null,null,"2.1 Sprache","Anzahl TeilnehmerInnen in Deutschkursen total",10,null,null,null,"N"]
["Bülach","22-1007-00","KR",null,"3.2 Zusammenleben",null,null,"2.1 Sprache","Anzahl TeilnehmerInnen in Deutschkursen mit Aufenthaltsbewilligung N",10,null,null,null,"S"]
["Dietikon","22-1028-00","MG",null,"[bitte über Drop-Down auswählen]","k.A.",null,"2.1 Sprache","Anzahl TeilnehmerInnen in Deutschkursen mit Aufenthaltsbewilligung F",10,null,null,null,"Schweiz"]
["Dietlikon","22-1031-00","FW",null,null,null,null,"2.1 Sprache","Anzahl TeilnehmerInnen in Deutschkursen mit Aufenthaltsbewilligung B (Flüchtling)",10]
["Dübendorf","22-1052-00","FW",null,null,null,null,"2.1 Sprache","Anzahl TeilnehmerInnen in Deutschkursen mit Aufenthaltsbewilligung B",10]
["Dürnten","22-1032-00","FW",null,null,null,null,"2.1 Sprache","Anzahl Kurse/Module",10]
["Eglisau","22-1008-00","KR",null,null,null,null,"2.1 Sprache","Anzahl Lektionen total"]
["Elgg","22-1033-00","KR"]
["Embrach","22-1009-00","KR",null,null,null,null,"2.2 Frühe Kindheit","Anzahl Spielgruppen",12]
["Fällanden","22-1034-00","FW"]
["Fehraltorf","22-1035-00","KR"]
["Fischenthal","22-1036-00","FW"]
["Geroldswil","22-1010-00","MG"]
["Glattfelden","22-1011-00","KR"]
["Gossau","22-1037-00","FW"]
["Greifensee","22-1038-00","FW"]
["Hedingen","22-1012-00","MG"]
["Hinwil","22-1039-00","FW"]
["Hochfelden","22-1013-00","KR"]
["Hombrechtikon","22-1040-00","KR"]
["Horgen","22-1014-00","MG"]
["Höri","22-1026-00","KR"]
["Illnau-Effretikon","22-1053-00","FW"]
["Kloten","22-1054-00","FW"]
["Männedorf","22-1041-00","KR"]
["Maur","22-1042-00","FW"]
["Neftenbach","22-1015-00","KR"]
["Niederhasli","22-1016-00","MG"]
["Oberengstringen","22-1017-00","MG"]
["Oberglatt","22-1018-00","MG"]
["Oetwil am See","22-1043-00","KR"]
["Opfikon","22-1055-00","FW"]
["Pfäffikon","22-1044-00","FW"]
["Regensdorf","22-1019-00","MG"]
["Richterswil","22-1020-00","MG"]
["Rümlang","22-1045-00","FW"]
["Rüti","22-1046-00","FW"]
["Schlieren","22-1003-00","MG"]
["Stäfa","22-1047-00","KR"]
["Thalwil","22-1021-00","MG"]
["Turbenthal","22-1048-00","KR"]
["Uitikon","22-1022-00","MG"]
["Uster","22-1056-00","FW"]
["Volketswil","22-1049-00","FW"]
["Wädenswil","22-1023-00","MG"]
["Wald","22-1050-00","FW"]
["Wallisellen","22-1051-00","FW"]
["Wangen-Brüttisellen","22-1058-00","FW"]
["Wettswil a.A.","22-1024-00","MG"]
["Wetzikon","22-1057-00","FW"]
["Winterthur","22-1002-00","MG"]
["Zell","22-1025-00","KR"]
["Zürich","22-1001-00","MG"]
["[bitte über Drop-Down auswählen]"]

{"sheet":"Makro BE Angebot","index":2,"n_rows":16,"n_cols":30,"rows_kept":16,"cut":false,"hidden":true,"merged":[]}
[null,null,null,null,null,null,null,null,null,null,null,"Kennzahlen"]
[null,null,null,null,null,null,null,null,null,null,null,"FB 1.1",null,null,null,"FB 2.1",null,null,null,null,null,null,null,"FB 2.2"]
["Anmerkung","Name Gemeinde","LV-Nr.","Anbieter","Angebot","Sachb","Förderbereich","FB","Aufwand","Ertrag","anrechenbare Kosten","Anzahl Begrüssungsgespräche (mit Einladung)","Zielgruppenerreichung in % (Anzahl Begrüssungsgespräche/Anzahl verschickter Einladungen)","Anzahl Beratungsgespräche (ohne Einladung)","Anzahl Gruppenveranstaltungen","Anzahl TeilnehmerInnen in Deutschkursen total","Anzahl TeilnehmerInnen in Deutschkursen mit Aufenthaltsbewilligung N","Anzahl TeilnehmerInnen in Deutschkursen mit Aufenthaltsbewilligung F","Anzahl TeilnehmerInnen in Deutschkursen mit Aufenthaltsbewilligung B (Flüchtling)","Anzahl TeilnehmerInnen in Deutschkursen mit Aufenthaltsbewilligung B","Anzahl Kurse/Module","durchschnittliche Anzahl Personen pro Kurs/Modul\n","Anzahl Lektionen total","Anzahl Familien (\"Zeppelin\", \"schritt:weise\" und \"Wir entdecken die Welt\")","Anzahl Spielgruppen",null,null,"FB (Liste)","Beschrieb","LZ"]
[null,{"$f":"IF('BE Angebot'!F9=\"\",\"\",'BE Angebot'!F9)","v":"[bitte über Drop-Down auswählen]"},{"$f":"IF(B4=\"\",\"\",'BE Angebot'!F10)","v":0},{"$f":"IF(B4=\"\",\"\",'BE Angebot'!F12)","v":0},{"$f":"IF(B4=\"\",\"\",'BE Angebot'!F13)","v":0},{"$f":"IF(B4=\"\",\"\",'BE Angebot'!J10)","v":0},{"$f":"IF(B4=\"\",\"\",'BE Angebot'!F14)","v":"[bitte über Drop-Down auswählen]"},{"$f":"LEFT(G4,3)","v":"[bi"},{"$f":"IF(B4=\"\",0,'BE Angebot'!J39)","v":0},{"$f":"IF(B4=\"\",0,'BE Angebot'!J54)","v":0},{"$f":"'BE Angebot'!J58","v":0},{"$f":"IF('BE Angebot'!D65='Makro BE Angebot'!$L$3,'BE Angebot'!G65,0)","v":0},{"$f":"IF('BE Angebot'!D66='Makro BE Angebot'!$M$3,'BE Angebot'!G66/100,0)","v":0},{"$f":"IF('BE Angebot'!D67='Makro BE Angebot'!$N$3,'BE Angebot'!G67,0)","v":0},{"$f":"IF('BE Angebot'!D68='Makro BE Angebot'!$O$3,'BE Angebot'!G68,0)","v":0},{"$f":"IF('BE Angebot'!D65='Makro BE Angebot'!$P$3,'BE Angebot'!G65,0)","v":0},{"$f":"IF('BE Angebot'!D66='Makro BE Angebot'!$Q$3,'BE Angebot'!G66,0)","v":0},{"$f":"IF('BE Angebot'!D67='Makro BE Angebot'!$R$3,'BE Angebot'!G67,0)","v":0},{"$f":"IF('BE Angebot'!D68='Makro BE Angebot'!$S$3,'BE Angebot'!G68,0)","v":0},{"$f":"IF('BE Angebot'!D69='Makro BE Angebot'!$T$3,'BE Angebot'!G69,0)","v":0},{"$f":"IF('BE Angebot'!D70='Makro BE Angebot'!$U$3,'BE Angebot'!G70,0)","v":0},{"$f":"IF(U4=0,0,Q4/U4)","v":0},{"$f":"IF('BE Angebot'!D71='Makro BE Angebot'!$W$3,'BE Angebot'!G71,0)","v":0},{"$f":"IF('BE Angebot'!D65='Makro BE Angebot'!$X$3,'BE Angebot'!G65,0)","v":0},{"$f":"IF('BE Angebot'!D66='Makro BE Angebot'!$Y$3,'BE Angebot'!G66,0)","v":0},null,null,"1.1 Erstinfo","Anzahl Begrüssungsgespräche (mit Einladung)",1]
[null,null,null,null,null,null,null,null,null,null,null,null,null,null,null,null,null,null,null,null,null,null,null,null,null,null,null,"1.1 Erstinfo","Zielgruppenerreichung in % (Anzahl Begrüssungsgespräche/Anzahl verschickter Einladungen)",1]
[null,null,null,null,null,null,null,null,null,null,null,null,null,null,null,null,null,null,null,null,null,null,null,null,null,null,null,"1.1 Erstinfo","Anzahl Beratungsgespräche (ohne Einladung)",1]
[null,null,null,null,null,null,null,null,null,null,null,null,null,null,null,null,null,null,null,null,null,null,null,null,null,null,null,"1.1 Erstinfo","Anzahl Gruppenveranstaltungen",1]
[null,null,null,null,null,null,null,null,null,null,null,null,null,null,null,null,null,null,null,null,null,null,null,null,null,null,null,"2.1 Sprache","Anzahl TeilnehmerInnen in Deutschkursen total",10]
[null,null,null,null,null,null,null,null,null,null,null,null,null,null,null,null,null,null,null,null,null,null,null,null,null,null,null,"2.1 Sprache","Anzahl TeilnehmerInnen in Deutschkursen mit Aufenthaltsbewilligung N",10]
[null,null,null,null,null,null,null,null,null,null,null,null,null,null,null,null,null,null,null,null,null,null,null,null,null,null,null,"2.1 Sprache","Anzahl TeilnehmerInnen in Deutschkursen mit Aufenthaltsbewilligung F",10]
[null,null,null,null,null,null,null,null,null,null,null,null,null,null,null,null,null,null,null,null,null,null,null,null,null,null,null,"2.1 Sprache","Anzahl TeilnehmerInnen in Deutschkursen mit Aufenthaltsbewilligung B (Flüchtling)",10]
[null,null,null,null,null,null,null,null,null,null,null,null,null,null,null,null,null,null,null,null,null,null,null,null,null,null,null,"2.1 Sprache","Anzahl TeilnehmerInnen in Deutschkursen mit Aufenthaltsbewilligung B",10]
[null,null,null,null,null,null,null,null,null,null,null,null,null,null,null,null,null,null,null,null,null,null,null,null,null,null,null,"2.1 Sprache","Anzahl Kurse/Module",10]
[null,null,null,null,null,null,null,null,null,null,null,null,null,null,null,null,null,null,null,null,null,null,null,null,null,null,null,"2.1 Sprache","Anzahl Lektionen total"]
[null,null,null,null,null,null,null,null,null,null,null,null,null,null,null,null,null,null,null,null,null,null,null,null,null,null,null,"2.2 Frühe Kindheit","Anzahl Familien (\"Zeppelin\", \"schritt:weise\" und \"Wir entdecken die Welt\")",15]
[null,null,null,null,null,null,null,null,null,null,null,null,null,null,null,null,null,null,null,null,null,null,null,null,null,null,null,"2.2 Frühe Kindheit","Anzahl Spielgruppen"]